[Event "Early-Titled-Tuesday-Blitz-June-18-2024"]
[Site "Chess.com"]
[Date "2024.06.18"]
[Round "9"]
[White "milovichalex"]
[Black "KarlEmilElmer"]
[Result "1-0"]
[WhiteElo "2383"]
[BlackElo "2171"]
[TimeControl "180+1"]
[EndTime "9:45:28 PDT"]
[Termination "milovichalex won on time"]

1. e4 {[%clk 0:02:53.2]} 1... c5 {[%clk 0:02:58.1]} 2. Nf3 {[%clk 0:02:52.9]}
2... d6 {[%clk 0:02:58.7]} 3. d4 {[%clk 0:02:53.6]} 3... cxd4 {[%clk 0:02:59.6]}
4. Nxd4 {[%clk 0:02:54.3]} 4... Nf6 {[%clk 0:03:00.3]} 5. Nc3 {[%clk 0:02:54.9]}
5... g6 {[%clk 0:03:00.9]} 6. Bg5 {[%clk 0:02:54.2]} 6... Bg7 {[%clk 0:03:01]}
7. f3 {[%clk 0:02:54.2]} 7... O-O {[%clk 0:03:00.7]} 8. Qd2 {[%clk 0:02:54.7]}
8... Nc6 {[%clk 0:03:00.5]} 9. Nxc6 {[%clk 0:02:55.1]} 9... bxc6 {[%clk
0:03:00.5]} 10. Bh6 {[%clk 0:02:56]} 10... Bxh6 {[%clk 0:02:30.8]} 11. Qxh6
{[%clk 0:02:55.3]} 11... Qb6 {[%clk 0:02:31.4]} 12. O-O-O {[%clk 0:02:51.8]}
12... Rb8 {[%clk 0:02:27.8]} 13. b3 {[%clk 0:02:51.2]} 13... Qa5 {[%clk
0:02:14.4]} 14. Kb2 {[%clk 0:02:45.1]} 14... Be6 {[%clk 0:01:44.8]} 15. h4
{[%clk 0:02:43.3]} 15... Qh5 {[%clk 0:01:33.9]} 16. Qe3 {[%clk 0:02:40.1]} 16...
Qe5 {[%clk 0:01:33.3]} 17. h5 {[%clk 0:02:33.3]} 17... Nxh5 {[%clk 0:01:32.1]}
18. g3 {[%clk 0:02:29.6]} 18... Qxg3 {[%clk 0:01:27.8]} 19. Bc4 {[%clk 0:02:13]}
19... Bxc4 {[%clk 0:01:26.6]} 20. Rxh5 {[%clk 0:02:11.4]} 20... Kh8 {[%clk
0:00:23.2]} 21. Rg1 {[%clk 0:01:58.8]} 21... Qxg1 {[%clk 0:00:17.4]} 22. Qxg1
{[%clk 0:01:53.9]} 22... gxh5 {[%clk 0:00:17.7]} 23. Qd4+ {[%clk 0:01:51.4]}
23... f6 {[%clk 0:00:18.1]} 24. Qxc4 {[%clk 0:01:51.9]} 24... Rb6 {[%clk
0:00:17.7]} 25. Qe6 {[%clk 0:01:50.9]} 25... Rb7 {[%clk 0:00:15.9]} 26. Ne2
{[%clk 0:01:49.5]} 26... Kg7 {[%clk 0:00:15.6]} 27. Nf4 {[%clk 0:01:49.8]} 27...
Rf7 {[%clk 0:00:09.8]} 28. Nxh5+ {[%clk 0:01:47.5]} 28... Kg6 {[%clk 0:00:08.2]}
29. Qg4+ {[%clk 0:01:41.8]} 29... Kh6 {[%clk 0:00:07.8]} 30. Ng3 {[%clk
0:01:41.4]} 30... e6 {[%clk 0:00:03]} 31. Qxe6 {[%clk 0:01:39.9]} 31... Kg7
{[%clk 0:00:02.3]} 32. Qxd6 {[%clk 0:01:39.4]} 32... Rbd7 {[%clk 0:00:01.8]} 33.
Qxc6 {[%clk 0:01:39.3]} 33... Rc7 {[%clk 0:00:01.8]} 34. Qe6 {[%clk 0:01:39.2]}
34... Kf8 {[%clk 0:00:01.7]} 35. Nf5 {[%clk 0:01:39]} 35... h5 {[%clk
0:00:01.9]} 36. Qd6+ {[%clk 0:01:34.9]} 36... Ke8 {[%clk 0:00:02]} 37. Qh2
{[%clk 0:01:29.9]} 37... Rh7 {[%clk 0:00:01.7]} 38. Qh4 {[%clk 0:01:29.6]} 1-0

[Event "Early-Titled-Tuesday-Blitz-June-18-2024"]
[Site "Chess.com"]
[Date "2024.06.18"]
[Round "9"]
[White "blitzking1729"]
[Black "Erdnya15"]
[Result "1-0"]
[WhiteElo "2832"]
[BlackElo "2540"]
[TimeControl "180+1"]
[EndTime "9:45:29 PDT"]
[Termination "blitzking1729 won by checkmate"]

1. e4 {[%clk 0:02:57.5]} 1... c5 {[%clk 0:02:43.1]} 2. Nf3 {[%clk 0:02:57.2]}
2... d6 {[%clk 0:02:43.3]} 3. Bb5+ {[%clk 0:02:57]} 3... Nd7 {[%clk 0:02:43.2]}
4. a4 {[%clk 0:02:54.2]} 4... a6 {[%clk 0:02:42.1]} 5. Bc4 {[%clk 0:02:52.7]}
5... Ngf6 {[%clk 0:02:42.3]} 6. Nc3 {[%clk 0:02:51.8]} 6... e6 {[%clk
0:02:40.4]} 7. O-O {[%clk 0:02:52]} 7... Ke7 {[%clk 0:02:40.6]} 8. d4 {[%clk
0:02:47.9]} 8... cxd4 {[%clk 0:02:40.6]} 9. Qxd4 {[%clk 0:02:47.5]} 9... Ke8
{[%clk 0:02:39.3]} 10. Rd1 {[%clk 0:02:47.1]} 10... Qc7 {[%clk 0:02:34.5]} 11.
Ba2 {[%clk 0:02:37.2]} 11... Be7 {[%clk 0:02:30]} 12. h3 {[%clk 0:02:36.6]}
12... b6 {[%clk 0:02:23]} 13. Qd3 {[%clk 0:02:32.1]} 13... Bb7 {[%clk
0:02:20.1]} 14. Bf4 {[%clk 0:02:21.1]} 14... Ne5 {[%clk 0:01:40.9]} 15. Qe2
{[%clk 0:02:03.4]} 15... h6 {[%clk 0:01:18.5]} 16. Nd4 {[%clk 0:01:51.4]} 16...
Nfd7 {[%clk 0:00:47.5]} 17. Bh2 {[%clk 0:01:47.4]} 17... Nc5 {[%clk 0:00:44.5]}
18. Rd2 {[%clk 0:01:34.7]} 18... Rc8 {[%clk 0:00:29.6]} 19. Rad1 {[%clk
0:01:34]} 19... g5 {[%clk 0:00:26.2]} 20. Ndb5 {[%clk 0:01:31.7]} 20... axb5
{[%clk 0:00:24.6]} 21. Nxb5 {[%clk 0:01:31.6]} 21... Qb8 {[%clk 0:00:23.2]} 22.
Nxd6+ {[%clk 0:01:20.3]} 22... Bxd6 {[%clk 0:00:21.9]} 23. Rxd6 {[%clk
0:01:21.2]} 23... f6 {[%clk 0:00:19.4]} 24. b4 {[%clk 0:01:16.1]} 24... Nxe4
{[%clk 0:00:02.5]} 25. Rxe6+ {[%clk 0:01:15.2]} 25... Kf8 {[%clk 0:00:03.2]} 26.
Bxe5 {[%clk 0:01:15.3]} 26... fxe5 {[%clk 0:00:01.4]} 27. Qf3+ {[%clk
0:01:15.2]} 27... Nf6 {[%clk 0:00:01]} 28. Qxf6+ {[%clk 0:01:14.3]} 28... Kg8
{[%clk 0:00:01.9]} 29. Re8+ {[%clk 0:01:10.7]} 29... Kh7 {[%clk 0:00:01.7]} 30.
Rd7# {[%clk 0:01:10.7]} 1-0

[Event "Early-Titled-Tuesday-Blitz-June-18-2024"]
[Site "Chess.com"]
[Date "2024.06.18"]
[Round "9"]
[White "Mikasinski"]
[Black "jaskol95"]
[Result "0-1"]
[WhiteElo "2704"]
[BlackElo "2626"]
[TimeControl "180+1"]
[EndTime "9:45:32 PDT"]
[Termination "jaskol95 won by resignation"]

1. e4 {[%clk 0:03:00.9]} 1... d5 {[%clk 0:02:53.5]} 2. exd5 {[%clk 0:03:00.7]}
2... Nf6 {[%clk 0:02:53.4]} 3. d4 {[%clk 0:03:00.6]} 3... Bg4 {[%clk 0:02:53.5]}
4. f3 {[%clk 0:02:59]} 4... Bf5 {[%clk 0:02:53.6]} 5. c4 {[%clk 0:02:59.2]} 5...
e6 {[%clk 0:02:52.1]} 6. g4 {[%clk 0:02:59.3]} 6... Nxg4 {[%clk 0:02:51.3]} 7.
fxg4 {[%clk 0:02:56.1]} 7... Qh4+ {[%clk 0:02:51]} 8. Kd2 {[%clk 0:02:56.6]}
8... Be4 {[%clk 0:02:38]} 9. Nf3 {[%clk 0:02:55.3]} 9... Qf2+ {[%clk 0:02:15]}
10. Qe2 {[%clk 0:02:53.7]} 10... Qxf3 {[%clk 0:02:14.6]} 11. Qxf3 {[%clk
0:02:52.5]} 11... Bxf3 {[%clk 0:02:15.5]} 12. Rg1 {[%clk 0:02:51.7]} 12... exd5
{[%clk 0:02:14.5]} 13. Nc3 {[%clk 0:02:52]} 13... Bb4 {[%clk 0:02:12.4]} 14. a3
{[%clk 0:02:46.6]} 14... Bd6 {[%clk 0:02:01.5]} 15. Bd3 {[%clk 0:02:32]} 15...
Bxh2 {[%clk 0:01:43.2]} 16. Re1+ {[%clk 0:02:30.4]} 16... Kd8 {[%clk 0:01:33.6]}
17. cxd5 {[%clk 0:02:28.7]} 17... Bf4+ {[%clk 0:01:25.9]} 18. Kc2 {[%clk
0:02:25.9]} 18... Bxc1 {[%clk 0:01:26.6]} 19. Raxc1 {[%clk 0:02:25.5]} 19...
Bxg4 {[%clk 0:01:27.3]} 20. Re3 {[%clk 0:02:15]} 20... h5 {[%clk 0:01:23.6]} 21.
Ne4 {[%clk 0:02:13.3]} 21... Re8 {[%clk 0:01:03.6]} 22. Rce1 {[%clk 0:02:09.1]}
22... Bf5 {[%clk 0:00:53.8]} 23. Kc3 {[%clk 0:02:05]} 23... Bxe4 {[%clk
0:00:42.6]} 24. Bxe4 {[%clk 0:01:57.1]} 24... Nd7 {[%clk 0:00:40.5]} 25. Bf5
{[%clk 0:01:44.8]} 25... Rxe3+ {[%clk 0:00:38.5]} 26. Rxe3 {[%clk 0:01:45.7]}
26... Nf6 {[%clk 0:00:31.2]} 27. Kc4 {[%clk 0:01:45.5]} 27... g6 {[%clk
0:00:30.9]} 28. Bh3 {[%clk 0:01:44.3]} 28... Ng4 {[%clk 0:00:27.9]} 29. Re2
{[%clk 0:01:40.1]} 29... Kd7 {[%clk 0:00:23.9]} 30. b4 {[%clk 0:01:38.7]} 30...
Re8 {[%clk 0:00:22.6]} 31. Re5 {[%clk 0:01:34.8]} 31... f5 {[%clk 0:00:19.9]}
32. Rxe8 {[%clk 0:01:31.7]} 32... Kxe8 {[%clk 0:00:19.5]} 33. b5 {[%clk
0:01:31.5]} 33... b6 {[%clk 0:00:19.1]} 34. a4 {[%clk 0:01:28.3]} 34... Ne3+
{[%clk 0:00:16.1]} 35. Kb3 {[%clk 0:01:23.6]} 35... Nxd5 {[%clk 0:00:17]} 36.
Bf1 {[%clk 0:01:22.4]} 36... Ne3 {[%clk 0:00:16.7]} 37. Be2 {[%clk 0:01:20.3]}
37... h4 {[%clk 0:00:16]} 38. Kc3 {[%clk 0:01:20.8]} 38... g5 {[%clk 0:00:15.2]}
39. Kd3 {[%clk 0:01:20.7]} 39... Nd5 {[%clk 0:00:14]} 40. Bf3 {[%clk 0:01:21.3]}
40... Nf4+ {[%clk 0:00:13.8]} 41. Kc4 {[%clk 0:01:21.9]} 41... g4 {[%clk
0:00:14]} 42. Bc6+ {[%clk 0:01:20.6]} 42... Ke7 {[%clk 0:00:14.6]} 43. d5 {[%clk
0:01:20.7]} 43... Kd6 {[%clk 0:00:14.9]} 0-1

[Event "Early-Titled-Tuesday-Blitz-June-18-2024"]
[Site "Chess.com"]
[Date "2024.06.18"]
[Round "9"]
[White "dennisodessa"]
[Black "GoltsevDmitry2000"]
[Result "0-1"]
[WhiteElo "2602"]
[BlackElo "2715"]
[TimeControl "180+1"]
[EndTime "9:45:34 PDT"]
[Termination "GoltsevDmitry2000 won by checkmate"]

1. d4 {[%clk 0:02:54]} 1... e6 {[%clk 0:02:59.8]} 2. c4 {[%clk 0:01:21.5]} 2...
d5 {[%clk 0:02:59]} 3. Nc3 {[%clk 0:01:21.1]} 3... Nf6 {[%clk 0:02:58.8]} 4.
cxd5 {[%clk 0:01:21.6]} 4... exd5 {[%clk 0:02:58.9]} 5. Bg5 {[%clk 0:01:16.2]}
5... c6 {[%clk 0:02:58.4]} 6. e3 {[%clk 0:01:16.3]} 6... h6 {[%clk 0:02:58.1]}
7. Bh4 {[%clk 0:01:16.5]} 7... Bd6 {[%clk 0:02:56.7]} 8. Bd3 {[%clk 0:01:16]}
8... O-O {[%clk 0:02:56.8]} 9. Nge2 {[%clk 0:01:15.7]} 9... Na6 {[%clk
0:02:56.2]} 10. f3 {[%clk 0:01:09.8]} 10... Re8 {[%clk 0:02:54.5]} 11. Bf2
{[%clk 0:01:09.6]} 11... Be6 {[%clk 0:02:52.1]} 12. O-O {[%clk 0:01:09.8]} 12...
Qd7 {[%clk 0:02:51.8]} 13. a3 {[%clk 0:01:03.7]} 13... Bf5 {[%clk 0:02:48.2]}
14. Bxa6 {[%clk 0:01:03.5]} 14... bxa6 {[%clk 0:02:45.6]} 15. Na4 {[%clk
0:01:03.6]} 15... Qc7 {[%clk 0:02:36.7]} 16. Ng3 {[%clk 0:01:03.4]} 16... Bg6
{[%clk 0:02:35.7]} 17. Rc1 {[%clk 0:01:03]} 17... h5 {[%clk 0:02:35]} 18. Re1
{[%clk 0:00:56.6]} 18... h4 {[%clk 0:02:31.6]} 19. Nf1 {[%clk 0:00:55.5]} 19...
h3 {[%clk 0:02:32.5]} 20. g3 {[%clk 0:00:53.5]} 20... Bh5 {[%clk 0:02:32.4]} 21.
g4 {[%clk 0:00:49.8]} 21... Bg6 {[%clk 0:02:32.2]} 22. Ng3 {[%clk 0:00:42.8]}
22... a5 {[%clk 0:02:24.7]} 23. Qd2 {[%clk 0:00:42.7]} 23... Rab8 {[%clk
0:02:23.1]} 24. Rc3 {[%clk 0:00:42.4]} 24... Qc8 {[%clk 0:02:19.2]} 25. Rec1
{[%clk 0:00:40.6]} 25... Qd7 {[%clk 0:01:40.3]} 26. Rxc6 {[%clk 0:00:40]} 26...
Rb3 {[%clk 0:01:38]} 27. Nc5 {[%clk 0:00:25.1]} 27... Bxc5 {[%clk 0:01:17.2]}
28. R6xc5 {[%clk 0:00:25]} 28... Qb7 {[%clk 0:01:16.9]} 29. Rc7 {[%clk
0:00:16.4]} 29... Qb8 {[%clk 0:01:15.1]} 30. Qxa5 {[%clk 0:00:16.4]} 30... Rxb2
{[%clk 0:01:14.6]} 31. Qxa7 {[%clk 0:00:16.9]} 31... Qb3 {[%clk 0:01:13.9]} 32.
g5 {[%clk 0:00:10.5]} 32... Rxf2 {[%clk 0:01:13.2]} 33. Kxf2 {[%clk 0:00:08.4]}
33... Qxe3+ {[%clk 0:01:13.2]} 34. Kf1 {[%clk 0:00:06.1]} 34... Qxf3+ {[%clk
0:01:13.5]} 35. Kg1 {[%clk 0:00:06.1]} 35... Qg2# {[%clk 0:01:14.2]} 0-1

[Event "Early-Titled-Tuesday-Blitz-June-18-2024"]
[Site "Chess.com"]
[Date "2024.06.18"]
[Round "9"]
[White "KNVB"]
[Black "Javokhir_Sindarov05"]
[Result "0-1"]
[WhiteElo "2828"]
[BlackElo "3053"]
[TimeControl "180+1"]
[EndTime "9:45:40 PDT"]
[Termination "Javokhir_Sindarov05 won by resignation"]

1. d4 {[%clk 0:03:00.9]} 1... Nf6 {[%clk 0:02:59.8]} 2. Bf4 {[%clk 0:03:01]}
2... c5 {[%clk 0:02:59]} 3. e3 {[%clk 0:03:00.7]} 3... g6 {[%clk 0:02:57.9]} 4.
c3 {[%clk 0:03:00.2]} 4... Bg7 {[%clk 0:02:57.7]} 5. h3 {[%clk 0:02:59.8]} 5...
O-O {[%clk 0:02:57.1]} 6. Nf3 {[%clk 0:03:00.1]} 6... b6 {[%clk 0:02:55]} 7.
Nbd2 {[%clk 0:02:57.2]} 7... Bb7 {[%clk 0:02:55.5]} 8. Bd3 {[%clk 0:02:54.3]}
8... d5 {[%clk 0:02:49.6]} 9. O-O {[%clk 0:02:49]} 9... Nc6 {[%clk 0:02:49]} 10.
Re1 {[%clk 0:01:16.7]} 10... Nd7 {[%clk 0:02:40.7]} 11. e4 {[%clk 0:00:33.6]}
11... dxe4 {[%clk 0:02:32.5]} 12. Bxe4 {[%clk 0:00:33.5]} 12... cxd4 {[%clk
0:02:16.8]} 13. Nxd4 {[%clk 0:00:32.5]} 13... Bxd4 {[%clk 0:02:17.4]} 14. cxd4
{[%clk 0:00:31.7]} 14... Nf6 {[%clk 0:02:18.1]} 15. Bh6 {[%clk 0:00:10.2]} 15...
Re8 {[%clk 0:02:13.8]} 16. Bxc6 {[%clk 0:00:03.9]} 16... Bxc6 {[%clk 0:02:14.7]}
17. Nc4 {[%clk 0:00:04.5]} 17... Rc8 {[%clk 0:02:08.4]} 18. Rc1 {[%clk
0:00:04.7]} 18... Bb7 {[%clk 0:02:03.2]} 19. b3 {[%clk 0:00:01]} 19... Qd7
{[%clk 0:01:40.7]} 20. Ne3 {[%clk 0:00:01.3]} 20... Rxc1 {[%clk 0:01:33.5]} 21.
Qxc1 {[%clk 0:00:02.2]} 21... Qxd4 {[%clk 0:01:34.2]} 22. Qc7 {[%clk 0:00:02.4]}
22... Qd7 {[%clk 0:01:31.1]} 23. Qe5 {[%clk 0:00:02.5]} 23... Qc6 {[%clk
0:01:23.9]} 24. Rd1 {[%clk 0:00:01.6]} 24... Qe4 {[%clk 0:01:17.3]} 25. Qxe4
{[%clk 0:00:01.6]} 25... Bxe4 {[%clk 0:01:16.7]} 26. Nc4 {[%clk 0:00:01.5]}
26... Ba8 {[%clk 0:01:11.4]} 27. Bg5 {[%clk 0:00:01.6]} 27... Nd5 {[%clk
0:01:11.4]} 28. Bd2 {[%clk 0:00:01.1]} 28... f6 {[%clk 0:01:09.2]} 29. Ne3
{[%clk 0:00:01.4]} 29... Nf4 {[%clk 0:01:08.5]} 30. f3 {[%clk 0:00:01.7]} 30...
Kf7 {[%clk 0:01:08.3]} 31. Bc1 {[%clk 0:00:01.5]} 31... Rc8 {[%clk 0:01:07.2]}
32. Kf2 {[%clk 0:00:01.7]} 32... Rxc1 {[%clk 0:01:07.8]} 33. Rxc1 {[%clk
0:00:01.1]} 33... Nd3+ {[%clk 0:01:08.5]} 34. Ke2 {[%clk 0:00:02]} 34... Nxc1+
{[%clk 0:01:09.4]} 35. Kd2 {[%clk 0:00:02.7]} 35... Nxa2 {[%clk 0:01:10.1]} 36.
Nc2 {[%clk 0:00:03.4]} 36... Bd5 {[%clk 0:01:09.7]} 0-1

[Event "Early-Titled-Tuesday-Blitz-June-18-2024"]
[Site "Chess.com"]
[Date "2024.06.18"]
[Round "9"]
[White "xasid81"]
[Black "Rosh1610"]
[Result "1-0"]
[WhiteElo "2618"]
[BlackElo "2479"]
[TimeControl "180+1"]
[EndTime "9:45:47 PDT"]
[Termination "xasid81 won by resignation"]

1. c4 {[%clk 0:02:51.3]} 1... e5 {[%clk 0:02:59.6]} 2. Nc3 {[%clk 0:02:50.4]}
2... Bb4 {[%clk 0:02:56.2]} 3. Nf3 {[%clk 0:02:51.3]} 3... Bxc3 {[%clk
0:02:56.3]} 4. dxc3 {[%clk 0:02:51.2]} 4... d6 {[%clk 0:02:56.4]} 5. g3 {[%clk
0:02:51.1]} 5... Nc6 {[%clk 0:02:56.5]} 6. c5 {[%clk 0:02:51.7]} 6... dxc5
{[%clk 0:02:55]} 7. Qxd8+ {[%clk 0:02:50.9]} 7... Kxd8 {[%clk 0:02:55.9]} 8. Be3
{[%clk 0:02:49.4]} 8... c4 {[%clk 0:02:53]} 9. Bg2 {[%clk 0:02:46.9]} 9... Nge7
{[%clk 0:02:48.8]} 10. a4 {[%clk 0:02:38]} 10... Ke8 {[%clk 0:02:42.2]} 11. a5
{[%clk 0:02:33.3]} 11... f6 {[%clk 0:02:40.4]} 12. a6 {[%clk 0:02:32.4]} 12...
b5 {[%clk 0:02:32.8]} 13. Bc5 {[%clk 0:02:31.8]} 13... Bd7 {[%clk 0:02:23.4]}
14. Nd2 {[%clk 0:02:26.2]} 14... Nc8 {[%clk 0:02:17.5]} 15. Ne4 {[%clk
0:02:21.6]} 15... h6 {[%clk 0:01:56.3]} 16. Ba3 {[%clk 0:02:21]} 16... Nb6
{[%clk 0:01:52.1]} 17. Nc5 {[%clk 0:02:20.6]} 17... Nc8 {[%clk 0:01:35.9]} 18.
Nb7 {[%clk 0:02:02.2]} 18... Rb8 {[%clk 0:01:30.5]} 19. O-O {[%clk 0:01:57.7]}
19... Nd8 {[%clk 0:00:50.8]} 20. Rfd1 {[%clk 0:01:51.4]} 20... Nf7 {[%clk
0:00:45.7]} 21. Bd5 {[%clk 0:01:36.6]} 21... Nfd6 {[%clk 0:00:36.3]} 22. Bc5
{[%clk 0:01:35.7]} 22... Ke7 {[%clk 0:00:33.6]} 23. Bg2 {[%clk 0:01:33.9]} 23...
Be6 {[%clk 0:00:23.1]} 24. Rd2 {[%clk 0:01:32.6]} 24... Rd8 {[%clk 0:00:21.3]}
25. Rad1 {[%clk 0:01:30]} 25... Ke8 {[%clk 0:00:15.5]} 26. Na5 {[%clk
0:01:26.5]} 26... Ne7 {[%clk 0:00:13.4]} 27. Bxa7 {[%clk 0:01:25.2]} 27... Ra8
{[%clk 0:00:11.2]} 28. Bxa8 {[%clk 0:01:23.7]} 28... Rxa8 {[%clk 0:00:12.1]} 29.
Bc5 {[%clk 0:01:24.2]} 29... Rxa6 {[%clk 0:00:12.7]} 30. Bxd6 {[%clk 0:01:21.6]}
30... cxd6 {[%clk 0:00:05.6]} 31. Rxd6 {[%clk 0:01:19.9]} 31... Rxa5 {[%clk
0:00:04.5]} 32. Rxe6 {[%clk 0:01:20]} 32... Kf7 {[%clk 0:00:05.1]} 33. Rb6
{[%clk 0:01:19.5]} 33... Nf5 {[%clk 0:00:05.3]} 34. Rd7+ {[%clk 0:01:17.2]}
34... Kg6 {[%clk 0:00:05.6]} 35. Rbb7 {[%clk 0:01:14.5]} 35... Kg5 {[%clk
0:00:04.3]} 36. Kg2 {[%clk 0:01:13.1]} 36... h5 {[%clk 0:00:03.5]} 37. e4 {[%clk
0:01:12.5]} 37... Kg6 {[%clk 0:00:01.8]} 38. exf5+ {[%clk 0:01:12.3]} 1-0

[Event "Early-Titled-Tuesday-Blitz-June-18-2024"]
[Site "Chess.com"]
[Date "2024.06.18"]
[Round "9"]
[White "SocoLoco"]
[Black "ab-lsv"]
[Result "0-1"]
[WhiteElo "2173"]
[BlackElo "2345"]
[TimeControl "180+1"]
[EndTime "9:45:48 PDT"]
[Termination "ab-lsv won on time"]

1. e4 {[%clk 0:02:58.1]} 1... c6 {[%clk 0:02:59.8]} 2. d4 {[%clk 0:02:56.2]}
2... d5 {[%clk 0:03:00.7]} 3. exd5 {[%clk 0:02:57.1]} 3... cxd5 {[%clk
0:03:00.9]} 4. c4 {[%clk 0:02:57.8]} 4... Nf6 {[%clk 0:03:01.1]} 5. Nc3 {[%clk
0:02:58.3]} 5... Nc6 {[%clk 0:03:01.5]} 6. Bg5 {[%clk 0:02:58.8]} 6... dxc4
{[%clk 0:03:00.1]} 7. Bxc4 {[%clk 0:02:55.1]} 7... e6 {[%clk 0:03:00]} 8. d5
{[%clk 0:02:50.5]} 8... exd5 {[%clk 0:02:54.3]} 9. Nxd5 {[%clk 0:02:45.6]} 9...
Be7 {[%clk 0:02:23]} 10. Nxf6+ {[%clk 0:02:15.7]} 10... Bxf6 {[%clk 0:02:22.4]}
11. Qxd8+ {[%clk 0:02:15.2]} 11... Bxd8 {[%clk 0:02:22.4]} 12. Bxd8 {[%clk
0:02:11]} 12... Nxd8 {[%clk 0:02:21.6]} 13. Nf3 {[%clk 0:02:06.9]} 13... O-O
{[%clk 0:02:12.6]} 14. O-O {[%clk 0:02:06.2]} 14... Be6 {[%clk 0:02:12.8]} 15.
Rac1 {[%clk 0:01:58.2]} 15... Rc8 {[%clk 0:02:11.3]} 16. Ne5 {[%clk 0:01:35.3]}
16... f6 {[%clk 0:01:56.5]} 17. Bxe6+ {[%clk 0:00:46.9]} 17... Nxe6 {[%clk
0:01:57.4]} 18. Nf3 {[%clk 0:00:43.3]} 18... Kf7 {[%clk 0:01:52]} 19. Rfd1
{[%clk 0:00:41.1]} 19... Rxc1 {[%clk 0:01:48.8]} 20. Rxc1 {[%clk 0:00:40.9]}
20... Rd8 {[%clk 0:01:49.1]} 21. Kf1 {[%clk 0:00:40.8]} 21... g5 {[%clk
0:01:47.7]} 22. h3 {[%clk 0:00:40.2]} 22... h5 {[%clk 0:01:47.5]} 23. Ke1 {[%clk
0:00:16.5]} 23... Rd7 {[%clk 0:01:43.3]} 24. Rd1 {[%clk 0:00:15.5]} 24... Re7
{[%clk 0:01:37.7]} 25. Kd2 {[%clk 0:00:13.7]} 25... g4 {[%clk 0:01:35.6]} 26.
hxg4 {[%clk 0:00:13.4]} 26... hxg4 {[%clk 0:01:36]} 27. Ne1 {[%clk 0:00:13.2]}
27... Nf4 {[%clk 0:01:20.1]} 28. g3 {[%clk 0:00:03.7]} 28... Ng6 {[%clk
0:01:03.4]} 29. Nd3 {[%clk 0:00:01.3]} 29... Rd7 {[%clk 0:01:01.5]} 30. Kc2
{[%clk 0:00:01.3]} 30... f5 {[%clk 0:00:59]} 0-1

[Event "Early-Titled-Tuesday-Blitz-June-18-2024"]
[Site "Chess.com"]
[Date "2024.06.18"]
[Round "9"]
[White "Stanbad1"]
[Black "Silent-Killer100"]
[Result "1-0"]
[WhiteElo "2719"]
[BlackElo "2583"]
[TimeControl "180+1"]
[EndTime "9:45:49 PDT"]
[Termination "Stanbad1 won on time"]

1. d4 {[%clk 0:03:00.9]} 1... Nf6 {[%clk 0:02:59.2]} 2. Nc3 {[%clk 0:03:00.7]}
2... g6 {[%clk 0:02:57.1]} 3. e4 {[%clk 0:03:00]} 3... d6 {[%clk 0:02:57.4]} 4.
Be3 {[%clk 0:02:59.5]} 4... Bg7 {[%clk 0:02:51.3]} 5. f3 {[%clk 0:02:59.3]} 5...
c6 {[%clk 0:02:49]} 6. Qd2 {[%clk 0:02:59.6]} 6... Qa5 {[%clk 0:02:46.9]} 7.
O-O-O {[%clk 0:02:56.6]} 7... Nbd7 {[%clk 0:02:43.4]} 8. Nh3 {[%clk 0:02:55.7]}
8... Nb6 {[%clk 0:02:42.3]} 9. Nf2 {[%clk 0:02:55.3]} 9... Be6 {[%clk
0:02:38.1]} 10. Kb1 {[%clk 0:02:54.5]} 10... Nc4 {[%clk 0:02:18.2]} 11. Bxc4
{[%clk 0:02:52.2]} 11... Bxc4 {[%clk 0:02:19.1]} 12. b3 {[%clk 0:02:52.6]} 12...
Be6 {[%clk 0:02:16.1]} 13. Nd3 {[%clk 0:02:52.9]} 13... Nd7 {[%clk 0:02:03.3]}
14. Nf4 {[%clk 0:02:51.3]} 14... Nb6 {[%clk 0:01:54.3]} 15. Nxe6 {[%clk
0:02:45.1]} 15... fxe6 {[%clk 0:01:55.2]} 16. h4 {[%clk 0:02:28.6]} 16... O-O-O
{[%clk 0:01:32.2]} 17. h5 {[%clk 0:02:27.9]} 17... gxh5 {[%clk 0:01:29.6]} 18.
Ne2 {[%clk 0:02:27]} 18... Qb5 {[%clk 0:01:23.6]} 19. Qd3 {[%clk 0:02:21.6]}
19... Qxd3 {[%clk 0:01:19.2]} 20. Rxd3 {[%clk 0:02:20.5]} 20... e5 {[%clk
0:01:15.3]} 21. Rxh5 {[%clk 0:02:19.6]} 21... d5 {[%clk 0:01:02.1]} 22. dxe5
{[%clk 0:02:17.7]} 22... dxe4 {[%clk 0:01:01.7]} 23. fxe4 {[%clk 0:02:17.2]}
23... Nd7 {[%clk 0:00:52.4]} 24. Bd4 {[%clk 0:02:06.9]} 24... c5 {[%clk
0:00:39.3]} 25. Bc3 {[%clk 0:02:04.6]} 25... b6 {[%clk 0:00:36.8]} 26. Nf4
{[%clk 0:02:02.3]} 26... c4 {[%clk 0:00:26.6]} 27. Rg3 {[%clk 0:01:45]} 27...
Nc5 {[%clk 0:00:15.2]} 28. Rxg7 {[%clk 0:01:40.7]} 28... Nxe4 {[%clk 0:00:15.9]}
29. Kb2 {[%clk 0:01:38.2]} 29... Rd1 {[%clk 0:00:14.8]} 30. bxc4 {[%clk
0:01:34.8]} 30... Rf8 {[%clk 0:00:15]} 31. g3 {[%clk 0:01:31.8]} 31... Kb8
{[%clk 0:00:12.1]} 32. e6 {[%clk 0:01:30.7]} 32... Rc8 {[%clk 0:00:10.6]} 33.
Be5+ {[%clk 0:01:27.1]} 33... Ka8 {[%clk 0:00:10.8]} 34. Rhxh7 {[%clk
0:01:26.2]} 34... Rxc4 {[%clk 0:00:09.7]} 35. Rxe7 {[%clk 0:01:25.5]} 35... Nd6
{[%clk 0:00:02.9]} 36. Rh8+ {[%clk 0:01:22.3]} 36... Nc8 {[%clk 0:00:02.4]} 37.
Rd7 {[%clk 0:01:18.4]} 37... Re1 {[%clk 0:00:01]} 38. Nd3 {[%clk 0:01:16.4]}
38... Re2 {[%clk 0:00:01.1]} 39. Bc3 {[%clk 0:01:12.9]} 1-0